fUSD/lending_fUSD_20240404
["ID","MTS","AMOUNT","RATE_DAILY","PERIOD"]
[321489985,1712239858678,-500.0,0.00049315,120]
[321489986,1712239858687,-1133.6,0.00049315,120]
[321489987,1712239858696,-512.57380633,0.00049315,120]
[321489988,1712239858706,-500.0,0.00049315,120]
[321489989,1712239858715,-1429.94,0.00049315,120]
[321489990,1712239858724,-500.0,0.00049315,120]
[321489991,1712239858734,-500.0,0.00049315,120]
[321489992,1712239858744,-500.0,0.00049315,120]
[321489993,1712239858757,-817.3,0.00049315,120]
[321489994,1712239858767,-513.21000195,0.00049315,120]
[321489995,1712239858777,-807.04,0.00049315,120]
[321489996,1712239858787,-514.52281156,0.00049315,120]
[321489997,1712239858797,-513.13367788,0.00049315,120]
[321489998,1712239858807,-500.0,0.00049315,120]
[321489999,1712239858817,-500.0,0.00049315,120]
[321490000,1712239858827,-510.55507241,0.00049315,120]
[321490001,1712239858921,-509.61,0.00049315,120]
[321490002,1712239858931,-500.0,0.00049315,120]
[321490003,1712239858940,-500.0,0.00049315,120]
[321490004,1712239858950,-500.0,0.00049315,120]
[321490005,1712239858959,-500.0,0.00049315,120]
[321490006,1712239858968,-500.0,0.00049315,120]
[321490007,1712239858978,-500.0,0.00049315,120]
[321490008,1712239858988,-500.0,0.00049315,2]
[321490009,1712239858997,-500.0,0.00049315,120]
[321490010,1712239859010,-500.0,0.00049315,120]
[321490011,1712239859019,-720.56,0.00049315,120]
[321490012,1712239859030,-500.0,0.00049315,120]
[321490013,1712239859041,-500.0,0.00049315,120]
[321490014,1712239859052,-500.0,0.00049315,120]
[321490015,1712239859061,-500.0,0.00049315,120]
[321490016,1712239859071,-1150.35,0.00049315,120]
[321490017,1712239859080,-500.0,0.00049315,120]
[321490018,1712239859090,-500.0,0.00049315,120]
[321490019,1712239859099,-500.0,0.00049315,120]
[321490020,1712239859108,-500.0,0.00049315,120]
[321490021,1712239859117,-519.00846256,0.00049315,120]
[321490022,1712239859126,-513.98131108,0.00049315,120]
[321490023,1712239859135,-500.0,0.00049315,120]
[321490024,1712239859145,-513.88045821,0.00049315,120]
[321490025,1712239859155,-500.0,0.00049315,120]
[321490026,1712239859165,-500.0,0.00049315,120]
[321490027,1712239859174,-500.0,0.00049315,120]
[321490028,1712239859183,-500.0,0.00049315,120]
[321490029,1712239859192,-2047.02,0.00049315,120]
[321490030,1712239859202,-512.63932292,0.00049315,120]
[321490031,1712239859211,-508.91501993,0.00049315,120]
[321490032,1712239859221,-527.77900755,0.00049315,120]
[321490033,1712239859231,-500.0,0.00049315,120]
[321490034,1712239859240,-500.0,0.00049315,120]
[321490035,1712239859252,-618.62,0.00049315,120]
[321490036,1712239859263,-1658.5,0.00049315,30]
[321490037,1712239859272,-500.0,0.00049315,120]
[321490038,1712239859282,-1165.16,0.00049315,120]
[321490039,1712239859291,-520.21863992,0.00049315,120]
[321490040,1712239859301,-500.0,0.00049315,120]
[321490041,1712239859310,-500.0,0.00049315,120]
[321490042,1712239859319,-500.0,0.00049315,120]
[321490043,1712239859329,-510.92310175,0.00049315,2]
[321490044,1712239859338,-502.33647914,0.00049315,120]
[321490045,1712239859347,-526.85732924,0.00049315,120]
[321490046,1712239859357,-632.61469955,0.00049315,120]
[321490047,1712239859366,-524.84208667,0.00049315,120]
[321490048,1712239859376,-531.11,0.00049315,120]
[321490049,1712239859386,-587.57,0.00049315,120]
[321490050,1712239859395,-506.13191442,0.00049315,120]
[321490051,1712239859404,-750.04,0.00049315,120]
[321490052,1712239859414,-753.57,0.00049315,120]
[321490053,1712239859424,-500.0,0.00049315,120]
[321490054,1712239859433,-500.0,0.00049315,120]
[321490055,1712239859442,-1165.86,0.00049315,120]
[321490056,1712239859451,-500.0,0.00049315,120]
[321490057,1712239859460,-1129.12,0.00049315,120]
[321490058,1712239859469,-500.0,0.00049315,120]
[321490059,1712239859478,-500.0,0.00049315,120]
[321490060,1712239859487,-500.0,0.00049315,120]
[321490061,1712239859496,-500.0,0.00049315,120]
[321490062,1712239859514,-500.0,0.00049315,120]
[321490063,1712239859524,-155.55076472,0.00049315,30]
[321490064,1712239859534,-510.83240412,0.00049315,120]
[321490065,1712239859543,-500.0,0.00049315,120]
[321490066,1712239859553,-500.0,0.00049315,120]
[321490067,1712239859562,-500.0,0.00049315,120]
[321490068,1712239859572,-523.14768251,0.00049315,120]
[321490069,1712239859581,-1143.63,0.00049315,120]
[321490070,1712239859591,-500.0,0.00049315,120]
[321490071,1712239859600,-500.0,0.00049315,120]
[321490072,1712239859609,-500.0,0.00049315,120]
[321490073,1712239859619,-500.0,0.00049315,120]
[321490074,1712239859628,-519.47554109,0.00049315,120]
[321490075,1712239859637,-1099.75,0.00049315,120]
[321490076,1712239859647,-500.0,0.00049315,120]
[321490077,1712239859660,-1263.93,0.00049315,120]
[321490078,1712239859670,-531.67275057,0.00049315,120]
[321490079,1712239859680,-500.0,0.00049315,120]
[321490080,1712239859689,-562.06,0.00049315,120]
[321490081,1712239859699,-500.0,0.00049315,120]
[321490082,1712239859708,-516.96789667,0.00049315,120]
[321490083,1712239859718,-500.0,0.00049315,120]
[321490084,1712239859727,-500.0,0.00049315,120]
[321490085,1712239859740,-500.0,0.00049315,120]
[321490086,1712239859752,-500.0,0.00049315,120]
[321490087,1712239859762,-500.0,0.00049315,120]
[321490088,1712239859772,-207.70924498,0.00049315,120]
[321490089,1712239859781,-519.66,0.00049315,120]
[321490090,1712239859790,-1000.0,0.00049315,30]
[321490091,1712239859799,-582.2,0.00049315,120]
[321490092,1712239859809,-1015.71,0.00049315,120]
[321490093,1712239859819,-500.0,0.00049315,120]
[321490094,1712239859829,-500.0,0.00049315,120]
[321490095,1712239859839,-500.0,0.00049315,2]
[321490096,1712239859850,-500.0,0.00049315,120]
[321490097,1712239859860,-1290.41,0.00049315,120]
[321490098,1712239859870,-500.0,0.00049315,120]
[321490099,1712239859879,-500.0,0.00049315,120]
[321490100,1712239859888,-500.0,0.00049315,120]
[321490101,1712239859899,-515.09105267,0.00049315,120]
[321490102,1712239859908,-1244.82,0.00049315,120]
[321490103,1712239859917,-514.19254746,0.00049315,120]
[321490104,1712239859927,-500.0,0.00049315,120]
[321490105,1712239859937,-1810.36,0.00049315,120]
[321490106,1712239859946,-475.90270182,0.00049315,120]
[321490107,1712239859955,-500.0,0.00049315,120]
[321490108,1712239859964,-500.0,0.00049315,120]
[321490109,1712239859973,-923.23,0.00049315,120]
[321490110,1712239859983,-500.0,0.00049315,120]
[321490111,1712239859992,-500.0,0.00049315,120]
[321490112,1712239860005,-500.0,0.00049315,120]
[321490113,1712239860013,-1446.83,0.00049315,120]
[321490114,1712239860022,-1276.6,0.00049315,120]
[321490115,1712239860032,-500.0,0.00049315,120]
[321490116,1712239860041,-500.0,0.00049315,120]
[321490117,1712239860050,-500.0,0.00049315,120]
[321490118,1712239860059,-519.44138785,0.00049315,120]
[321490119,1712239860069,-718.91,0.00049315,120]
[321490120,1712239860078,-500.0,0.00049315,120]
[321490121,1712239860087,-3457.7,0.00049315,120]
[321490122,1712239860096,-537.63,0.00049315,120]
[321490123,1712239860105,-1065.5,0.00049315,120]
[321490124,1712239860114,-509.62970002,0.00049315,120]
[321490125,1712239860123,-500.0,0.00049315,120]
[321490126,1712239860132,-500.0,0.00049315,120]
[321490127,1712239860141,-500.0,0.00049315,120]
[321490128,1712239860150,-500.0,0.00049315,120]
[321490129,1712239860159,-500.0,0.00049315,120]
[321490130,1712239860169,-500.0,0.00049315,120]
[321490131,1712239860178,-1333.71,0.00049315,120]
[321490132,1712239860187,-500.0,0.00049315,120]
[321490133,1712239860196,-508.12717287,0.00049315,120]
[321490134,1712239860206,-500.0,0.00049315,120]
[321490135,1712239860215,-500.0,0.00049315,120]
[321490136,1712239860224,-505.94917417,0.00049315,120]
[321490137,1712239860233,-931.69,0.00049315,120]
[321490138,1712239860243,-500.0,0.00049315,120]
[321490139,1712239860254,-506.41597427,0.00049315,120]
[321490140,1712239860263,-509.4524257,0.00049315,120]
[321490141,1712239860273,-510.30940513,0.00049315,120]
[321490142,1712239860282,-500.0,0.00049315,120]
[321490143,1712239860291,-500.0,0.00049315,120]
[321490144,1712239860301,-500.0,0.00049315,120]
[321490145,1712239860310,-500.0,0.00049315,120]
[321490146,1712239860319,-1104.92,0.00049315,120]
[321490147,1712239860328,-500.0,0.00049315,120]
[321490148,1712239860337,-500.0,0.00049315,120]
[321490149,1712239860346,-1557.69,0.00049315,120]
[321490150,1712239860355,-500.0,0.00049315,120]
[321490151,1712239860365,-188.36096139,0.00049315,120]
[321490152,1712239860373,-500.0,0.00049315,120]
[321490153,1712239860383,-1446.69,0.00049315,120]
[321490154,1712239860392,-702.71,0.00049315,120]
[321490155,1712239860401,-500.0,0.00049315,120]
[321490156,1712239860410,-500.0,0.00049315,120]
[321490157,1712239860419,-500.0,0.00049315,120]
[321490158,1712239860428,-500.0,0.00049315,120]
[321490159,1712239860437,-500.0,0.00049315,120]
[321490160,1712239860446,-500.0,0.00049315,120]
[321490161,1712239860456,-500.0,0.00049315,120]
[321490162,1712239860465,-2000.0,0.00049315,30]
[321490163,1712239860474,-1745.27,0.00049315,120]
[321490164,1712239860483,-1286.6,0.00049315,120]
[321490165,1712239860492,-500.0,0.00049315,120]
[321490166,1712239860507,-748.01,0.00049315,120]
[321490167,1712239860516,-999.21,0.00049315,120]
[321490168,1712239860524,-1245.24,0.00049315,120]
[321490169,1712239860533,-500.0,0.00049315,120]
[321490170,1712239860542,-500.0,0.00049315,120]
[321490171,1712239860553,-500.0,0.00049315,120]
[321490172,1712239860563,-500.0,0.00049315,120]
[321490173,1712239860574,-500.0,0.00049315,120]
[321490174,1712239860583,-1085.45,0.00049315,120]
[321490175,1712239860593,-500.0,0.00049315,120]
[321490176,1712239860602,-1455.27,0.00049315,120]
[321490177,1712239860610,-500.0,0.00049315,120]
[321490178,1712239860619,-500.0,0.00049315,120]
[321490179,1712239860629,-500.0,0.00049315,120]
[321490180,1712239860639,-500.0,0.00049315,120]
[321490181,1712239860649,-500.0,0.00049315,120]
[321490182,1712239860662,-500.0,0.00049315,120]
[321490183,1712239860672,-500.0,0.00049315,120]
[321490184,1712239860681,-686.35,0.00049315,120]
[321490185,1712239860690,-500.0,0.00049315,120]
[321490186,1712239860701,-500.0,0.00049315,120]
[321490187,1712239860711,-500.0,0.00049315,120]
[321490188,1712239860719,-500.0,0.00049315,120]
[321490189,1712239860729,-500.0,0.00049315,120]
[321490190,1712239860739,-500.0,0.00049315,120]
[321490191,1712239860753,-513.44103496,0.00049315,120]
[321490192,1712239860762,-500.0,0.00049315,120]
[321490193,1712239860771,-730.23,0.00049315,120]
[321490194,1712239860780,-1507.88,0.00049315,120]
[321490195,1712239860789,-533.57,0.00049315,120]
[321490196,1712239860799,-677.6,0.00049315,120]
[321490197,1712239860808,-1290.46,0.00049315,120]
[321490198,1712239860818,-500.0,0.00049315,120]
[321490199,1712239860827,-500.0,0.00049315,120]
[321490200,1712239860837,-500.0,0.00049315,120]
[321490201,1712239860846,-500.0,0.00049315,120]
[321490202,1712239860855,-1994.21,0.00049315,120]
[321490203,1712239860864,-306.05814209,0.00049315,120]
[321490204,1712239860874,-1948.47,0.00049315,120]
[321490205,1712239860883,-500.0,0.00049315,120]
[321490206,1712239860893,-959.62,0.00049315,120]
[321490207,1712239860902,-1592.91,0.00049315,120]
[321490208,1712239860911,-507.58393587,0.00049315,120]
[321490209,1712239860920,-1901.5,0.00049315,120]
[321490210,1712239860929,-500.0,0.00049315,120]
[321490211,1712239860938,-509.95353448,0.00049315,120]
[321490212,1712239860948,-500.0,0.00049315,120]
[321490213,1712239860958,-500.0,0.00049315,120]
[321490214,1712239860967,-500.0,0.00049315,120]
[321490215,1712239860976,-405.24241982,0.00049315,14]
[321490216,1712239860986,-500.0,0.00049315,120]
[321490217,1712239860996,-500.0,0.00049315,120]
[321490218,1712239861014,-500.0,0.00049315,120]
[321490219,1712239861024,-500.0,0.00049315,120]
[321490220,1712239861033,-514.68276915,0.00049315,120]
[321490221,1712239861043,-1792.48,0.00049315,120]
[321490222,1712239861053,-1003.26,0.00049315,120]
[321490223,1712239861062,-500.0,0.00049315,120]
[321490224,1712239861072,-500.0,0.00049315,60]
[321490225,1712239861082,-500.0,0.00049315,120]
[321490226,1712239861092,-500.0,0.00049315,120]
[321490227,1712239861101,-500.0,0.00049315,120]
[321490228,1712239861111,-500.0,0.00049315,120]
[321490229,1712239861120,-500.0,0.00049315,120]
[321490230,1712239861129,-506.86464095,0.00049315,120]
[321490231,1712239861139,-500.0,0.00049315,120]
[321490232,1712239861148,-377.34725617,0.00049315,120]
[321490233,1712239861157,-500.0,0.00049315,120]
[321490234,1712239861166,-2176.63,0.00049315,120]
[321490235,1712239861176,-500.0,0.00049315,120]
[321490236,1712239861185,-500.0,0.00049315,120]
[321490237,1712239861194,-514.00691189,0.00049315,120]
[321490238,1712239861204,-498.63646123,0.00049315,120]
[321490239,1712239861213,-2134.92,0.00049315,120]
[321490240,1712239861223,-243.38656729,0.00049315,120]
[321490241,1712239861233,-1508.53,0.00049315,120]
[321490242,1712239861242,-500.0,0.00049315,120]
[321490243,1712239861258,-500.0,0.00049315,120]
[321490244,1712239861268,-500.0,0.00049315,120]
[321490245,1712239861278,-500.0,0.00049315,120]
[321490246,1712239861287,-525.67753569,0.00049315,120]
[321490247,1712239861297,-500.0,0.00049315,120]
[321490248,1712239861306,-500.0,0.00049315,2]
[321490249,1712239861315,-500.0,0.00049315,120]
[321490250,1712239861325,-500.0,0.00049315,120]
[321490251,1712239861335,-500.0,0.00049315,120]
[321490252,1712239861345,-516.80071397,0.00049315,120]
[321490253,1712239861355,-500.0,0.00049315,120]
[321490254,1712239861363,-500.0,0.00049315,120]
[321490255,1712239861373,-500.0,0.00049315,120]
[321490256,1712239861383,-500.0,0.00049315,120]
[321490257,1712239861392,-500.0,0.00049315,120]
[321490258,1712239861401,-509.06353648,0.00049315,120]
[321490259,1712239861410,-1062.68,0.00049315,120]
[321490260,1712239861420,-1295.23,0.00049315,120]
[321490261,1712239861429,-500.0,0.00049315,120]
[321490262,1712239861438,-500.0,0.00049315,120]
[321490263,1712239861449,-500.0,0.00049315,120]
[321490264,1712239861459,-500.0,0.00049315,120]
[321490265,1712239861469,-500.0,0.00049315,120]
[321490266,1712239861478,-794.04,0.00049315,120]
[321490267,1712239861487,-794.04,0.00049315,120]
[321490268,1712239861496,-794.04,0.00049315,120]
[321490269,1712239861512,-794.04,0.00049315,120]
[321490270,1712239861521,-794.04,0.00049315,120]
[321490271,1712239861530,-500.0,0.00049315,120]
[321490272,1712239861539,-794.04,0.00049315,120]
[321490273,1712239861549,-794.04,0.00049315,120]
[321490274,1712239861559,-500.0,0.00049315,120]
[321490275,1712239861569,-500.0,0.00049315,120]
[321490276,1712239861578,-794.04,0.00049315,120]
[321490277,1712239861588,-500.0,0.00049315,120]
[321490278,1712239861599,-794.04,0.00049315,120]
[321490279,1712239861609,-500.0,0.00049315,120]
[321490280,1712239861618,-730.22,0.00049315,120]
[321490281,1712239861628,-794.04,0.00049315,120]
[321490282,1712239861638,-794.04,0.00049315,120]
[321490283,1712239861648,-794.04,0.00049315,120]
[321490284,1712239861658,-794.04,0.00049315,120]
[321490285,1712239861669,-794.04,0.00049315,120]
[321490286,1712239861679,-794.04,0.00049315,120]
[321490287,1712239861688,-500.0,0.00049315,120]
[321490288,1712239861699,-794.04,0.00049315,120]
[321490289,1712239861708,-500.0,0.00049315,120]
[321490290,1712239861717,-794.04,0.00049315,120]
[321490291,1712239861727,-500.0,0.00049315,120]
[321490292,1712239861738,-794.04,0.00049315,120]
[321490293,1712239861748,-500.0,0.00049315,120]
[321490294,1712239861765,-500.0,0.00049315,120]
[321490295,1712239861775,-794.04,0.00049315,120]
[321490296,1712239861785,-794.04,0.00049315,120]
[321490297,1712239861795,-794.04,0.00049315,120]
[321490298,1712239861804,-740.86,0.00049315,120]
[321490299,1712239861814,-794.04,0.00049315,120]
[321490300,1712239861823,-794.04,0.00049315,120]
[321490301,1712239861834,-500.0,0.00049315,120]
[321490302,1712239861843,-794.09938943,0.00049315,120]
[321490303,1712239861852,-500.0,0.00049315,120]
[321490304,1712239861862,-951.59,0.00049315,120]
[321490305,1712239861871,-500.0,0.00049315,120]
[321490306,1712239861881,-887.41,0.00049315,120]
[321490307,1712239861890,-698.65,0.00049315,120]
[321490308,1712239861900,-837.02,0.00049315,120]
[321490309,1712239861909,-500.0,0.00049315,120]
[321490310,1712239861918,-500.0,0.00049315,120]
[321490311,1712239861927,-500.0,0.00049315,120]
[321490312,1712239861936,-500.0,0.00049315,120]
[321490313,1712239861946,-500.0,0.00049315,120]
[321490314,1712239861956,-1392.93,0.00049315,120]
[321490315,1712239861965,-560.86,0.00049315,120]
[321490316,1712239861975,-500.0,0.00049315,120]
[321490317,1712239861985,-527.10801948,0.00049315,120]
[321490318,1712239861995,-500.0,0.00049315,120]
[321490319,1712239862010,-500.0,0.00049315,120]
[321490320,1712239862019,-605.58,0.00049315,120]
[321490321,1712239862028,-500.0,0.00049315,120]
[321490322,1712239862037,-1366.49,0.00049315,120]
[321490323,1712239862046,-962.52,0.00049315,120]
[321490324,1712239862055,-500.0,0.00049315,120]
[321490325,1712239862064,-500.0,0.00049315,120]
[321490326,1712239862074,-500.0,0.00049315,120]
[321490327,1712239862084,-500.0,0.00049315,120]
[321490328,1712239862093,-500.0,0.00049315,120]
[321490329,1712239862102,-500.0,0.00049315,120]
[321490330,1712239862112,-500.0,0.00049315,120]
[321490331,1712239862121,-500.0,0.00049315,120]
[321490332,1712239862131,-1193.6,0.00049315,120]
[321490333,1712239862140,-500.0,0.00049315,120]
[321490334,1712239862149,-500.0,0.00049315,120]
[321490335,1712239862158,-542.38,0.00049315,120]
[321490336,1712239862167,-1084.67,0.00049315,120]
[321490337,1712239862176,-500.0,0.00049315,120]
[321490338,1712239862186,-500.0,0.00049315,120]
[321490339,1712239862195,-500.0,0.00049315,120]
[321490340,1712239862205,-621.75,0.00049315,120]
[321490341,1712239862214,-500.0,0.00049315,120]
[321490342,1712239862224,-514.81639773,0.00049315,120]
[321490343,1712239862233,-513.11494693,0.00049315,120]
[321490344,1712239862242,-500.0,0.00049315,120]
[321490345,1712239862256,-509.71210728,0.00049315,120]
[321490346,1712239862268,-500.0,0.00049315,120]
[321490347,1712239862280,-151.0,0.00049315,14]
[321490348,1712239862290,-712.66,0.00049315,120]
[321490349,1712239862300,-500.0,0.00049315,120]
[321490350,1712239862310,-500.0,0.00049315,120]
[321490351,1712239862320,-1353.81,0.00049315,30]
[321490352,1712239862330,-500.0,0.00049315,120]
[321490353,1712239862340,-500.0,0.00049315,120]
[321490354,1712239862350,-1024.73,0.00049315,120]
[321490355,1712239862361,-554.22,0.00049315,120]
[321490356,1712239862371,-1434.93,0.00049315,120]
[321490357,1712239862381,-500.0,0.00049315,120]
[321490358,1712239862391,-500.0,0.00049315,120]
[321490359,1712239862401,-500.0,0.00049315,120]
[321490360,1712239862412,-500.0,0.00049315,120]
[321490361,1712239862424,-519.44710684,0.00049315,120]
[321490362,1712239862434,-500.0,0.00049315,120]
[321490363,1712239862446,-500.0,0.00049315,120]
[321490364,1712239862456,-1473.76,0.00049315,120]
[321490365,1712239862467,-513.39,0.00049315,120]
[321490366,1712239862477,-500.0,0.00049315,120]
[321490367,1712239862487,-500.0,0.00049315,2]
[321490368,1712239862497,-500.0,0.00049315,120]
[321490369,1712239862510,-500.0,0.00049315,120]
[321490370,1712239862520,-951.41,0.00049315,120]
[321490371,1712239862530,-1521.78,0.00049315,120]
[321490372,1712239862539,-1756.07,0.00049315,120]
[321490373,1712239862549,-500.0,0.00049315,120]
[321490374,1712239862559,-500.0,0.00049315,120]
[321490375,1712239862568,-500.0,0.00049315,120]
[321490376,1712239862578,-500.0,0.00049315,120]
[321490377,1712239862588,-1286.48,0.00049315,120]
[321490378,1712239862597,-501.07460173,0.00049315,120]
[321490379,1712239862608,-509.21503211,0.00049315,120]
[321490380,1712239862618,-500.0,0.00049315,120]
[321490381,1712239862628,-637.67,0.00049315,120]
[321490382,1712239862638,-500.0,0.00049315,120]
[321490383,1712239862649,-500.0,0.00049315,120]
[321490384,1712239862664,-836.11,0.00049315,120]
[321490385,1712239862675,-1275.82,0.00049315,120]
[321490386,1712239862686,-556.95,0.00049315,120]
[321490387,1712239862697,-1000.0,0.00049315,120]
[321490388,1712239862709,-636.36,0.00049315,120]
[321490389,1712239862719,-500.0,0.00049315,120]
[321490390,1712239862728,-500.0,0.00049315,120]
[321490391,1712239862740,-675.35,0.00049315,120]
[321490392,1712239862750,-1269.75,0.00049315,120]
[321490393,1712239862763,-500.0,0.00049315,120]
[321490394,1712239862773,-500.0,0.00049315,120]
[321490395,1712239862783,-500.0,0.00049315,120]
[321490396,1712239862794,-500.0,0.00049315,120]
[321490397,1712239862804,-638.31,0.00049315,120]
[321490398,1712239862814,-500.0,0.00049315,120]
[321490399,1712239862825,-500.0,0.00049315,120]
[321490400,1712239862835,-515.70100702,0.00049315,120]
[321490401,1712239862845,-709.89,0.00049315,120]
[321490402,1712239862855,-500.0,0.00049315,120]
[321490403,1712239862866,-500.0,0.00049315,120]
[321490404,1712239862876,-500.0,0.00049315,120]
[321490405,1712239862886,-748.51,0.00049315,120]
[321490406,1712239862897,-500.0,0.00049315,120]
[321490407,1712239862907,-1383.82,0.00049315,120]
[321490408,1712239862917,-500.0,0.00049315,120]
[321490409,1712239862927,-1410.22,0.00049315,120]
[321490410,1712239862938,-500.0,0.00049315,120]
[321490411,1712239862948,-1951.59,0.00049315,120]
[321490412,1712239862958,-500.0,0.00049315,120]
[321490413,1712239862968,-500.0,0.00049315,120]
[321490414,1712239862978,-1417.62,0.00049315,120]
[321490415,1712239862988,-594.92,0.00049315,120]
[321490416,1712239862998,-506.94702517,0.00049315,120]
[321490417,1712239863010,-1337.47,0.00049315,120]
[321490418,1712239863020,-500.0,0.00049315,120]
[321490419,1712239863029,-500.0,0.00049315,120]
[321490420,1712239863039,-500.0,0.00049315,120]
[321490421,1712239863049,-913.21,0.00049315,120]
[321490422,1712239863058,-500.0,0.00049315,120]
[321490423,1712239863068,-500.0,0.00049315,120]
[321490424,1712239863078,-506.74151615,0.00049315,120]
[321490425,1712239863088,-598.3,0.00049315,120]
[321490426,1712239863098,-500.0,0.00049315,120]
[321490427,1712239863108,-162.79,0.00049315,120]
[321490428,1712239863119,-1775.91,0.00049315,120]
[321490429,1712239863129,-507.56568107,0.00049315,120]
[321490430,1712239863139,-1316.72,0.00049315,120]
[321490431,1712239863149,-500.0,0.00049315,120]
[321490432,1712239863160,-1192.25,0.00049315,120]
[321490433,1712239863170,-500.0,0.00049315,120]
[321490434,1712239863180,-500.0,0.00049315,120]
[321490435,1712239863190,-510.34382713,0.00049315,120]
[321490436,1712239863200,-932.62,0.00049315,120]
[321490437,1712239863210,-500.0,0.00049315,120]
[321490438,1712239863221,-601.3,0.00049315,120]
[321490439,1712239863231,-500.0,0.00049315,120]
[321490440,1712239863241,-500.0,0.00049315,120]
[321490441,1712239863250,-500.0,0.00049315,120]
[321490442,1712239863263,-500.0,0.00049315,120]
[321490443,1712239863273,-1342.7,0.00049315,120]
[321490444,1712239863283,-503.41333975,0.00049315,120]
[321490445,1712239863293,-2752.20189015,0.00049315,120]
[321490446,1712239863303,-593.34,0.00049315,120]
[321490447,1712239863313,-500.0,0.00049315,120]
[321490448,1712239863323,-500.0,0.00049315,120]
[321490449,1712239863332,-500.0,0.00049315,120]
[321490450,1712239863342,-500.0,0.00049315,120]
[321490451,1712239863352,-500.0,0.00049315,120]
[321490452,1712239863362,-500.0,0.00049315,120]
[321490453,1712239863372,-500.0,0.00049315,120]
[321490454,1712239863381,-500.0,0.00049315,120]
[321490455,1712239863392,-500.0,0.00049315,120]
[321490456,1712239863402,-500.0,0.00049315,120]
[321490457,1712239863412,-500.0,0.00049315,120]
[321490458,1712239863422,-560.98,0.00049315,120]
[321490459,1712239863433,-504.66708113,0.00049315,30]
[321490460,1712239863442,-500.0,0.00049315,120]
[321490461,1712239863452,-1355.94,0.00049315,60]
[321490462,1712239863462,-500.0,0.00049315,120]
[321490463,1712239863472,-500.0,0.00049315,120]
[321490464,1712239863482,-500.0,0.00049315,120]
[321490465,1712239863492,-500.0,0.00049315,120]
[321490466,1712239863505,-500.0,0.00049315,120]
[321490467,1712239863515,-500.0,0.00049315,120]
[321490468,1712239863525,-500.0,0.00049315,120]
[321490469,1712239863536,-500.0,0.00049315,120]
[321490470,1712239863546,-500.0,0.00049315,120]
[321490471,1712239863556,-1988.89,0.00049315,120]
[321490472,1712239863566,-1368.89,0.00049315,120]
[321490473,1712239863576,-1222.96,0.00049315,120]
[321490474,1712239863586,-500.0,0.00049315,120]
[321490475,1712239863596,-500.0,0.00049315,120]
[321490476,1712239863606,-500.0,0.00049315,120]
[321490477,1712239863616,-500.0,0.00049315,120]
[321490478,1712239863626,-500.0,0.00049315,120]
[321490479,1712239863636,-500.0,0.00049315,120]
[321490480,1712239863646,-500.0,0.00049315,120]
[321490481,1712239863657,-500.0,0.00049315,120]
[321490482,1712239863669,-500.0,0.00049315,120]
[321490483,1712239863679,-500.0,0.00049315,120]
[321490484,1712239863692,-484.72845971,0.00049315,120]